bitfinex/quotes_ETHUSD_20250322
["timestamp","ask_amount","ask_price","bid_price","bid_amount"]
[1742611052114,5.03432,1986.4,1986.1,15.68884249]
[1742611053520,10.06872,1986.4,1986.1,10.65398249]
[1742611054216,5.83927,1986.5,1986.1,15.68875249]
[1742611054578,5.83927,1986.5,1986.1,20.72363249]
[1742611054797,5.83927,1986.5,1986.2,5.03472]
[1742611055820,10.87344,1986.5,1986.1,15.68875249]
[1742611056413,10.06866,1986.4,1986.1,10.65398249]
[1742611056910,10.06866,1986.4,1986.1,5.98998249]
[1742611057130,5.03473,1986.2,1986.1,5.98998249]
[1742611057632,5.03473,1986.2,1986.0,26.605]
[1742611057835,5.03499,1986.1,1986.0,26.605]
[1742611058419,5.03473,1986.2,1986.0,26.605]
[1742611058626,5.03499,1986.1,1986.0,26.605]
[1742611062034,5.03499,1986.1,1985.9,5.98998249]
[1742611062842,9.70435955,1986.3,1985.9,11.02528249]
[1742611063018,9.70435955,1986.3,1985.9,11.02527249]
[1742611063339,14.73900955,1986.3,1985.9,16.06066249]
[1742611063535,14.73900955,1986.3,1985.9,16.06061249]
[1742611064438,14.73900955,1986.3,1985.9,11.02527249]
[1742611064757,5.03476,1986.2,1985.9,11.02527249]
[1742611067052,9.70447955,1986.3,1985.9,11.02529249]
[1742611067416,14.73912955,1986.3,1985.9,11.02529249]
[1742611067811,9.70447955,1986.3,1985.9,11.02529249]
[1742611068018,5.84632,1986.3,1986.0,5.03523]
[1742611068822,10.88096,1986.3,1985.9,11.02529249]
[1742611069024,0.8117,1986.3,1986.0,5.03513]
[1742611070154,0.8117,1986.3,1986.0,10.07027]
[1742611070351,0.8117,1986.3,1986.0,5.03513]
[1742611070554,0.8117,1986.3,1986.0,5.03512]
[1742611071055,5.84618,1986.3,1986.0,5.03512]
[1742611073153,8.1632441,1986.3,1986.0,5.03512]
[1742611073453,7.3515441,1986.3,1986.0,5.03512]
[1742611073853,5.03448,1986.3,1986.0,5.03512]
[1742611074456,8.1535041,1986.4,1986.0,5.03505]
[1742611074748,13.1878941,1986.4,1986.0,5.03505]
[1742611075143,13.1878941,1986.4,1986.0,11.02503249]
[1742611075650,8.1535041,1986.4,1986.0,16.06012249]
[1742611075874,13.1879041,1986.4,1986.0,11.02503249]
[1742611076022,13.1879041,1986.4,1986.0,11.49262522]
[1742611076956,13.1879041,1986.4,1986.0,11.86674833]
[1742611077555,13.1879041,1986.4,1986.0,11.3991556]
[1742611078555,13.1879141,1986.4,1986.0,11.3991556]
[1742611079463,8.1535041,1986.4,1986.1,5.03486]
[1742611079664,13.1878941,1986.4,1986.0,16.06013249]
[1742611079870,13.1878941,1986.4,1986.0,11.02503249]
[1742611080972,13.1878941,1986.4,1986.0,16.06019249]
[1742611081273,13.1878941,1986.4,1986.0,11.02503249]
[1742611081871,13.1878741,1986.4,1986.0,16.06018249]
[1742611082169,8.1535041,1986.4,1986.1,5.03498]
[1742611082976,13.1879341,1986.4,1986.0,11.02500249]
[1742611083165,13.1879341,1986.4,1986.0,16.06010249]
[1742611083778,8.1535041,1986.4,1986.0,16.06010249]
[1742611083949,8.1535041,1986.4,1986.1,5.03497]
[1742611084380,13.1879041,1986.4,1986.1,5.03497]
[1742611084551,8.1535041,1986.4,1986.1,5.03497]
[1742611084947,13.1879041,1986.4,1986.1,5.03497]
[1742611085148,8.1535041,1986.4,1986.1,5.03497]
[1742611085776,13.1878741,1986.4,1986.1,5.03497]
[1742611086381,13.1878741,1986.4,1986.0,16.06013249]
[1742611086779,8.1535041,1986.4,1986.0,16.06013249]
[1742611087776,5.83644,1986.4,1986.0,11.02500249]
[1742611087981,8.1535041,1986.4,1986.1,5.03498]
[1742611088395,8.1535041,1986.4,1986.0,37.64600249]
[1742611088582,13.1879641,1986.4,1986.0,42.68109249]
[1742611088882,8.1535041,1986.4,1986.0,42.68109249]
[1742611089485,13.1878841,1986.4,1986.0,42.68109249]
[1742611089684,8.1535041,1986.4,1986.0,42.68109249]
[1742611090196,13.1878841,1986.4,1986.0,42.68109249]
[1742611090714,8.1535041,1986.4,1986.1,5.03496]
[1742611091292,8.1535041,1986.4,1986.1,5.0349]
[1742611091590,0.8022,1986.4,1986.0,32.61098249]
[1742611091767,0.7948,1986.6,1986.4,5.03412]
[1742611091973,8.1452341,1986.8,1986.4,10.06813]
[1742611092167,0.7948,1986.8,1986.4,5.98998249]
[1742611092389,8.1446841,1987.0,1986.7,5.03347]
[1742611092688,0.7948,1987.0,1986.7,5.03337]
[1742611092902,5.82752,1987.0,1986.7,5.03337]
[1742611093255,8.1445841,1987.0,1986.7,5.03337]
[1742611093689,7.3501341,1986.9,1986.6,5.6885]
[1742611093869,7.3501341,1986.9,1986.6,5.0337]
[1742611094066,5.82833,1986.7,1986.5,4.666]
[1742611094716,7.3507941,1986.6,1986.4,10.65598249]
[1742611094917,8.1458341,1986.5,1986.4,5.98998249]
[1742611097212,9.69037678,1986.5,1986.4,5.98998249]
[1742611097818,5.03451,1986.3,1986.1,5.98998249]
[1742611099820,10.06921,1986.3,1986.1,5.98998249]
[1742611100027,5.82953,1986.2,1986.1,5.98998249]
[1742611104538,5.03451,1986.3,1986.1,5.98998249]
[1742611104764,10.84086,1986.4,1986.1,5.98998249]
[1742611104899,5.03456,1986.3,1986.1,5.98998249]
[1742611106425,10.06921,1986.3,1986.1,5.98998249]
[1742611107523,5.83423,1986.2,1986.1,5.98998249]
[1742611108460,5.03524,1986.0,1985.9,26.619]
[1742611108666,9.69634678,1986.0,1985.9,26.619]
[1742611112652,5.83474,1986.0,1985.9,26.619]
[1742611112851,5.03524,1986.0,1985.9,26.619]
[1742611113055,5.03509,1986.1,1985.9,26.619]
[1742611113441,10.07024,1986.1,1985.9,26.619]
[1742611113668,5.03524,1986.0,1985.9,26.619]
[1742611114213,5.83428,1986.2,1985.9,26.619]
[1742611114503,10.07016,1986.1,1985.9,26.619]
[1742611114669,5.03524,1986.0,1985.9,26.619]
[1742611118603,10.07017,1986.1,1985.9,26.619]
[1742611119661,5.03524,1986.0,1985.9,26.619]
[1742611120683,5.03524,1986.0,1985.8,0.6548]
[1742611121102,10.07064,1986.0,1985.8,0.6548]
[1742611121263,10.07064,1986.0,1985.7,5.98998249]
[1742611121795,5.03524,1986.0,1985.7,5.98998249]
[1742611121960,5.03524,1986.0,1985.7,11.02595249]
[1742611123106,5.03551,1985.9,1985.7,5.98998249]
[1742611123309,10.07117,1985.9,1985.7,5.98998249]
[1742611123607,5.03551,1985.9,1985.7,5.98998249]
[1742611124292,5.03528,1986.0,1985.7,11.02590249]
[1742611127096,10.07067,1986.0,1985.7,5.98998249]
[1742611127904,5.03528,1986.0,1985.7,11.02598249]
[1742611128402,0.7995,1986.2,1985.9,5.03545]
[1742611128590,5.83431,1986.2,1985.9,5.03545]
[1742611128904,5.81308,1986.4,1985.8,0.6548]
[1742611129207,10.06914,1986.3,1985.9,11.02528249]
[1742611129601,10.06914,1986.3,1985.9,16.06066249]
[1742611129972,10.06914,1986.3,1985.9,11.02528249]
[1742611130296,10.06913,1986.3,1985.9,16.06063249]
[1742611130496,5.0345,1986.3,1985.9,16.06063249]
[1742611131518,10.06914,1986.3,1985.9,16.06063249]
[1742611132341,10.06914,1986.3,1985.9,11.02528249]
[1742611132518,10.06914,1986.3,1985.9,16.06068249]
[1742611133016,10.06914,1986.3,1985.9,11.02528249]
[1742611133179,10.06913,1986.3,1985.9,16.06070249]
[1742611133379,10.06918,1986.3,1985.9,16.06068249]
[1742611133605,5.03475,1986.2,1985.9,11.02528249]
[1742611135111,5.03475,1986.2,1985.9,37.64828249]
[1742611135306,0.7788,1986.4,1985.9,37.64828249]
[1742611135618,0.7703,1986.7,1986.4,5.03413]
[1742611135785,10.06778,1986.6,1986.2,11.02455249]
[1742611135986,10.06771,1986.6,1986.2,16.05917249]
[1742611136189,5.03384,1986.6,1986.3,5.03441]
[1742611136417,5.80378,1986.7,1986.3,10.0687]
[1742611136613,10.83742,1986.7,1986.3,5.03429]
[1742611136818,10.83744,1986.7,1986.3,5.03429]
[1742611136985,10.83744,1986.7,1986.3,5.68909]
[1742611137185,5.80378,1986.7,1986.3,5.68909]
[1742611137409,0.7703,1986.7,1986.3,6.64478249]
[1742611137720,5.03334,1986.8,1986.5,5.03397]
[1742611138385,5.03352,1986.7,1986.4,9.70102]
[1742611138590,5.80382,1986.7,1986.4,9.70102]
[1742611138893,5.0339,1986.6,1986.4,4.667]
[1742611139098,5.03397,1986.5,1986.4,4.667]
[1742611139498,5.03397,1986.5,1986.3,5.98998249]
[1742611139499,5.03423,1986.4,1986.3,5.98998249]
[1742611139725,5.80453,1986.4,1986.3,5.98998249]
[1742611140928,5.03483,1986.2,1986.0,5.98998249]
[1742611141110,10.06973,1986.2,1986.0,5.98998249]
[1742611141805,5.03499,1986.1,1986.0,5.98998249]
[1742611144435,10.06967,1986.2,1986.0,5.98998249]
[1742611144646,10.06975,1986.2,1986.0,5.98998249]
[1742611145235,5.03483,1986.2,1986.0,5.98998249]
[1742611145598,5.03483,1986.2,1985.9,26.623]
[1742611145599,10.06973,1986.2,1985.9,32.61298249]
[1742611145939,5.03483,1986.2,1985.9,32.61298249]
[1742611146231,5.80456,1986.4,1986.1,5.03491]
[1742611146437,5.80456,1986.4,1986.1,10.06977]
[1742611146640,5.03403,1986.5,1986.1,5.03485]
[1742611146823,5.03403,1986.5,1986.2,5.03472]
[1742611147019,5.03403,1986.5,1986.2,5.03461]
[1742611147407,10.06816,1986.5,1986.1,5.68965]
[1742611147607,6.50746668,1986.5,1986.1,10.7245]
[1742611148122,4.66620678,1986.6,1986.1,0.6548]
[1742611148326,10.8724,1986.6,1986.2,11.02460249]
[1742611149197,5.03399,1986.5,1986.2,11.02460249]
[1742611150923,5.8385,1986.6,1986.3,5.03445]
[1742611151094,5.0339,1986.6,1986.3,5.03445]
[1742611153829,5.0339,1986.6,1986.3,10.06879]
[1742611153999,5.0339,1986.6,1986.3,5.03434]
[1742611154936,10.06714,1986.7,1986.3,5.03428]
[1742611155236,10.06712,1986.7,1986.3,5.03428]
[1742611155412,10.06716,1986.7,1986.3,5.03428]
[1742611155732,10.0671,1986.7,1986.3,5.03428]
[1742611156435,5.03374,1986.6,1986.3,5.03428]
[1742611156928,5.83806,1986.8,1986.4,5.68879]
[1742611157132,5.83806,1986.8,1986.4,0.6548]
[1742611157133,5.03354,1986.7,1986.4,0.6548]
[1742611157349,5.03375,1986.6,1986.4,0.6548]
[1742611159141,10.87035,1987.0,1986.6,5.03363]
[1742611159332,5.83747,1987.0,1986.6,10.06727]
[1742611159500,0.8046,1987.0,1986.8,5.03309]
[1742611159825,8.89396678,1987.2,1986.8,5.03309]
[1742611159826,9.69856678,1987.2,1986.8,10.06612]
[1742611160029,0.1173474,1987.3,1987.2,5.687]
[1742611160330,0.1173474,1987.3,1987.2,16.36298249]
[1742611161705,0.1173474,1987.3,1987.2,16.7355054]
[1742611163504,0.1173474,1987.3,1987.2,17.11381202]
[1742611164112,0.1173474,1987.3,1987.2,17.29128911]
[1742611164503,7.4e-06,1987.3,1987.2,24.15289589]
[1742611164849,7.4e-06,1987.3,1987.2,27.15289589]
[1742611166032,0.930733,1988.1,1988.0,5.03018]
[1742611166232,0.930733,1988.1,1988.0,46.18076187]
[1742611167439,0.930733,1988.1,1988.0,37.28997509]
[1742611168035,0.930733,1988.1,1988.0,37.28897509]
[1742611169959,0.930733,1988.1,1988.0,42.31915509]
[1742611170260,0.930733,1988.1,1988.0,46.18076187]
[1742611170459,0.930733,1988.1,1988.0,41.15058187]
[1742611173241,1.763633,1988.1,1988.0,37.28497509]
[1742611173741,1.763633,1988.1,1988.0,32.59997509]
[1742611174045,1.763633,1988.1,1988.0,37.28397509]
[1742611174845,6.793553,1988.1,1988.0,32.59997509]
[1742611175318,7.1429863,1988.1,1988.0,32.59997509]
[1742611175513,7.9414863,1988.1,1988.0,32.59997509]
[1742611177812,7.9414863,1988.1,1988.0,26.61]
[1742611181849,7.9414863,1988.1,1987.6,10.67897509]
[1742611181850,5.03119,1987.6,1987.5,4.684]
[1742611182229,5.03115,1987.7,1987.5,4.684]
[1742611182428,5.82247,1988.0,1987.6,3.86160678]
[1742611182651,10.85288,1988.0,1987.6,14.88266187]
[1742611183013,5.0305,1987.9,1987.6,9.85158187]
[1742611183417,5.0305,1987.9,1987.6,14.88271187]
[1742611183945,10.06115,1987.9,1987.6,9.85158187]
[1742611184247,5.0308,1987.8,1987.6,5.98997509]
[1742611184423,5.03094,1987.7,1987.6,5.98997509]
[1742611186549,10.06163,1987.8,1987.6,5.98997509]
[1742611186848,5.0308,1987.8,1987.6,5.98997509]
[1742611187151,10.06164,1987.8,1987.6,5.98997509]
[1742611188725,5.82314,1987.7,1987.6,5.98997509]
[1742611192058,5.03144,1987.5,1987.4,32.58897509]
[1742611192235,10.06266,1987.6,1987.4,32.58897509]
[1742611193324,5.03144,1987.5,1987.4,32.58897509]
[1742611194227,5.03144,1987.5,1987.4,26.599]
[1742611195027,5.79364,1987.5,1987.4,26.599]
[1742611198968,6.876133,1987.5,1987.4,26.599]
[1742611199479,5.03271,1987.0,1986.9,5.98997509]
[1742611199625,5.03271,1987.0,1986.8,26.601]
[1742611200057,10.06561,1987.0,1986.8,26.601]
[1742611200245,5.03296,1986.9,1986.8,26.601]
[1742611200762,5.03246,1987.1,1986.8,26.601]
[1742611200938,10.06507,1987.1,1986.8,31.63418]
[1742611201140,10.06507,1987.1,1986.8,26.601]
[1742611202441,5.03246,1987.1,1986.8,26.601]
[1742611203125,10.0651,1987.1,1986.8,26.601]
[1742611203333,5.03246,1987.1,1986.8,26.601]
[1742611203660,0.7622,1987.2,1986.8,26.601]
[1742611203860,0.7622,1987.6,1987.1,3.86160678]
[1742611204066,10.82492,1987.6,1987.2,5.0321]
[1742611204557,10.82482,1987.6,1987.2,10.71897]
[1742611205062,10.82483,1987.6,1987.2,10.71893]
[1742611205261,5.79348,1987.6,1987.2,10.71893]
[1742611205431,10.82484,1987.6,1987.2,10.71893]
[1742611206069,5.03147,1987.5,1987.2,5.68686]
[1742611208277,5.85181,1987.8,1987.2,0.6548]
[1742611208483,5.8518,1987.8,1987.3,5.03174]
[1742611208783,5.8518,1987.8,1987.4,5.03169]
[1742611208784,5.03102,1987.7,1987.4,5.03169]
[1742611209370,5.03102,1987.7,1987.3,5.03174]
[1742611209553,5.03131,1987.6,1987.3,5.03174]
[1742611209750,5.03131,1987.6,1987.2,6.15294203]
[1742611209952,5.03148,1987.5,1987.2,6.15294203]
[1742611210146,5.03131,1987.6,1987.2,17.17494712]
[1742611210147,10.0626,1987.6,1987.2,17.17494712]
[1742611211473,10.0626,1987.6,1987.2,16.70897509]
[1742611211975,5.03129,1987.6,1987.2,16.70897509]
[1742611212377,5.03149,1987.5,1987.2,6.64477509]
[1742611212537,5.0317,1987.4,1987.2,5.98997509]
[1742611216008,5.0317,1987.4,1987.1,11.02231509]
[1742611216368,10.06356,1987.4,1987.1,11.02231509]
[1742611216769,5.03195,1987.3,1987.1,5.98997509]
[1742611217665,5.0322,1987.2,1987.1,5.98997509]
[1742611217869,5.03251,1987.1,1986.9,5.98997509]
[1742611218868,10.8855,1987.2,1986.9,5.98997509]
[1742611219066,5.8531,1987.2,1986.9,11.02291509]
[1742611219494,10.88549,1987.2,1986.9,5.98997509]
[1742611219695,5.8531,1987.2,1986.9,5.98997509]
[1742611220088,10.88549,1987.2,1986.9,5.98997509]
[1742611220979,10.06455,1987.2,1986.9,5.98997509]
[1742611221315,5.0322,1987.2,1986.9,5.98997509]
[1742611221516,10.06458,1987.2,1986.9,5.98997509]
[1742611222121,5.0322,1987.2,1986.9,5.98997509]
[1742611222317,5.0322,1987.2,1986.9,11.02291509]
[1742611222470,5.03197,1987.3,1987.0,5.03269]
[1742611222676,5.03197,1987.3,1987.0,5.68749]
[1742611224243,5.03222,1987.2,1987.0,0.6548]
[1742611224384,5.03197,1987.3,1986.9,11.02279509]
[1742611224582,5.03197,1987.3,1986.9,11.02277509]
[1742611224583,5.03221,1987.2,1986.9,11.02277509]
[1742611225525,5.03221,1987.2,1986.9,5.98997509]
[1742611226184,5.03251,1987.1,1986.9,5.98997509]
[1742611229337,10.06514,1987.1,1986.9,5.98997509]
[1742611229502,5.03271,1987.0,1986.8,31.292]
[1742611229829,5.03296,1986.9,1986.8,31.292]
[1742611230590,5.03296,1986.9,1986.8,26.601]
[1742611235839,5.0328,1987.0,1986.8,26.601]
[1742611236004,3.86160678,1987.3,1986.9,5.68753]
[1742611236005,5.83337,1987.3,1986.9,5.68753]
[1742611236203,10.86555,1987.3,1986.9,5.68753]
[1742611237030,5.03222,1987.2,1986.9,5.68753]
[1742611237335,5.83337,1987.3,1986.9,5.68753]
[1742611237519,10.86553,1987.3,1986.9,5.68753]
[1742611237834,10.06423,1987.3,1986.9,5.68753]
[1742611238013,10.06421,1987.3,1986.9,5.68753]
[1742611238213,5.03207,1987.3,1986.9,5.68753]
[1742611238529,10.06423,1987.3,1986.9,5.68753]
[1742611238835,10.06419,1987.3,1986.9,5.68753]
[1742611239531,5.03225,1987.2,1986.9,11.67750509]
[1742611241523,5.03207,1987.3,1986.9,16.71030509]
[1742611241725,10.06418,1987.3,1986.9,15.53911187]
[1742611241933,5.03207,1987.3,1986.9,15.53911187]
[1742611242245,5.03207,1987.3,1987.0,4.687]
[1742611242535,10.06418,1987.3,1987.0,4.687]
[1742611242843,5.03207,1987.3,1987.0,4.687]
[1742611243543,5.03207,1987.3,1987.0,9.71969]
[1742611244443,10.06358,1987.4,1987.0,9.71969]
[1742611245556,5.03155,1987.5,1987.1,11.02223509]
[1742611245759,5.03155,1987.5,1987.2,5.68699]
[1742611246158,10.06315,1987.5,1987.2,5.68699]
[1742611246653,5.03172,1987.4,1987.1,11.02223509]
[1742611246960,10.06358,1987.4,1987.1,11.02223509]
[1742611247754,5.03204,1987.3,1987.1,5.98997509]
[1742611248329,5.0322,1987.2,1987.1,5.98997509]
[1742611248584,5.03204,1987.3,1987.1,5.98997509]
[1742611248864,10.06414,1987.3,1987.1,5.98997509]
[1742611249069,5.03204,1987.3,1987.1,5.98997509]
[1742611250857,10.06416,1987.3,1987.1,5.98997509]
[1742611251036,10.06414,1987.3,1987.1,5.98997509]
[1742611251243,5.03204,1987.3,1987.1,5.98997509]
[1742611251962,10.06418,1987.3,1987.1,5.98997509]
[1742611252154,10.06422,1987.3,1987.1,5.98997509]
[1742611252355,5.03204,1987.3,1987.1,5.98997509]
[1742611252935,10.06418,1987.3,1987.1,5.98997509]
[1742611253486,10.06415,1987.3,1987.1,5.98997509]
[1742611253766,5.0322,1987.2,1987.1,5.98997509]
[1742611255943,10.06409,1987.3,1987.1,5.98997509]
[1742611256476,5.0322,1987.2,1987.1,5.98997509]
[1742611257172,10.06459,1987.2,1987.0,31.294]
[1742611257570,5.03245,1987.1,1987.0,26.607]
[1742611260568,5.03284,1987.0,1986.7,10.67297509]
[1742611261969,10.0657,1987.0,1986.7,10.67297509]
[1742611262797,5.03284,1987.0,1986.7,15.70643509]
[1742611263291,5.03284,1987.0,1986.7,10.67297509]
[1742611263596,5.03228,1987.2,1986.9,5.68763]
[1742611264083,10.06464,1987.2,1986.9,0.6548]
[1742611264396,5.03247,1987.1,1986.9,0.6548]
[1742611264970,5.03228,1987.2,1986.9,5.68775]
[1742611265481,5.03223,1987.2,1986.9,5.68775]
[1742611265791,5.03223,1987.2,1986.9,6.64477509]
[1742611265981,10.06459,1987.2,1986.9,6.64477509]
[1742611266169,5.03251,1987.1,1986.9,5.98997509]
[1742611266792,10.06515,1987.1,1986.9,5.98997509]
[1742611267599,5.03271,1987.0,1986.9,5.98997509]
[1742611267774,5.81021,1987.1,1986.9,5.98997509]
[1742611267960,10.84285,1987.1,1986.9,5.98997509]
[1742611269465,5.81021,1987.1,1986.9,5.98997509]
[1742611269901,10.84284,1987.1,1986.9,5.98997509]
[1742611270107,5.81021,1987.1,1986.9,5.98997509]
[1742611270717,5.03251,1987.1,1986.9,5.98997509]
[1742611274725,5.03271,1987.0,1986.9,5.98997509]
[1742611276144,5.03251,1987.1,1986.9,5.98997509]
[1742611276808,10.84233,1987.2,1986.9,5.98997509]
[1742611277831,5.03247,1987.1,1986.9,5.98997509]
[1742611279237,10.0651,1987.1,1986.9,5.98997509]
[1742611279534,5.03271,1987.0,1986.9,5.98997509]
[1742611283449,5.03271,1987.0,1986.8,26.608]
[1742611284620,5.03271,1987.0,1986.7,15.70637509]
[1742611286951,10.06556,1987.0,1986.7,15.70637509]
[1742611287131,5.033,1986.9,1986.7,10.67297509]
[1742611287537,10.06613,1986.9,1986.7,10.67297509]
[1742611287742,5.03321,1986.8,1986.7,10.67297509]
[1742611288361,10.0662,1986.9,1986.7,10.67297509]
[1742611288585,5.03321,1986.8,1986.7,10.67297509]
[1742611288881,5.03321,1986.8,1986.7,5.98997509]
[1742611289177,9.18416655,1986.8,1986.7,5.98997509]
[1742611289317,5.03347,1986.7,1986.6,26.609]
[1742611290877,7.34830555,1986.7,1986.6,26.609]
[1742611292165,8.17780555,1986.7,1986.6,26.609]
[1742611293261,9.72414661,1986.7,1986.6,26.609]
[1742611293671,11.19988227,1986.7,1986.6,26.609]
[1742611295378,5.03463,1986.3,1986.1,5.98997509]
[1742611295548,5.03473,1986.2,1986.1,10.66197509]
[1742611295878,5.03463,1986.3,1986.1,10.66197509]
[1742611296547,10.06929,1986.3,1986.1,5.98997509]
[1742611296754,5.03463,1986.3,1986.1,5.98997509]
[1742611296965,10.06928,1986.3,1986.1,5.98997509]
[1742611297687,5.03473,1986.2,1986.1,5.98997509]
[1742611299890,5.03463,1986.3,1986.1,6.64477509]
[1742611300946,5.03463,1986.3,1986.1,0.6548]
[1742611301141,10.06927,1986.3,1986.1,0.6548]
[1742611301581,5.03463,1986.3,1986.1,0.6548]
[1742611301757,10.06927,1986.3,1986.1,0.6548]
[1742611302793,10.06927,1986.3,1986.0,32.60197509]
[1742611303018,5.03475,1986.2,1986.0,32.60197509]
[1742611305398,10.06968,1986.2,1986.0,32.60197509]
[1742611305553,5.03499,1986.1,1986.0,26.612]
[1742611305751,1.006968,1986.2,1986.0,26.612]
[1742611305956,5.79953,1986.3,1986.0,26.612]
[1742611306186,5.03484,1986.2,1986.0,26.612]
[1742611306588,5.03484,1986.2,1986.0,27.2668]
[1742611307401,10.06975,1986.2,1986.0,27.2668]
[1742611308070,5.03484,1986.2,1986.0,27.2668]
[1742611308267,10.06975,1986.2,1986.0,27.2668]
[1742611308686,10.06975,1986.2,1986.0,26.612]
[1742611308687,5.03499,1986.1,1986.0,26.612]
[1742611310319,10.84486,1986.2,1986.0,26.612]
[1742611311418,5.03499,1986.1,1986.0,26.612]
[1742611314114,5.03499,1986.1,1985.9,5.98997509]
[1742611314715,5.03479,1986.2,1985.9,11.02545509]
[1742611315083,5.03479,1986.2,1985.9,5.98997509]
[1742611315278,10.06969,1986.2,1985.9,11.02546509]
[1742611315478,5.03479,1986.2,1985.9,11.02546509]
[1742611315779,5.0346,1986.3,1986.0,5.03519]
[1742611316495,10.06924,1986.3,1985.9,13.34231187]
[1742611317386,10.06925,1986.3,1985.9,13.34226187]
[1742611317587,5.0346,1986.3,1985.9,18.37761187]
[1742611318028,10.06924,1986.3,1985.9,13.34226187]
[1742611318913,10.06924,1986.3,1986.0,26.62]
[1742611319620,5.03476,1986.2,1986.0,26.62]
[1742611320027,10.06926,1986.3,1986.0,26.62]
[1742611320325,5.0346,1986.3,1986.0,26.62]
[1742611320823,10.06926,1986.3,1986.0,26.62]
[1742611321523,10.06926,1986.3,1986.0,32.60997509]
[1742611323020,5.03486,1986.2,1986.0,32.60997509]
[1742611328531,5.03486,1986.2,1986.0,5.98997509]
[1742611330131,5.03499,1986.1,1986.0,5.98997509]
[1742611333242,5.03499,1986.1,1985.9,32.61097509]
[1742611333403,5.03499,1986.1,1985.9,34.92792187]
[1742611333608,5.03486,1986.2,1985.9,39.96338187]
[1742611335444,5.03486,1986.2,1985.9,39.96328187]
[1742611335613,10.06975,1986.2,1985.9,39.96328187]
[1742611335811,5.03486,1986.2,1985.9,32.61097509]
[1742611336015,5.03508,1986.1,1985.9,32.61097509]
[1742611336541,10.07028,1986.1,1985.9,32.61097509]
[1742611336915,5.03508,1986.1,1985.9,32.61097509]
[1742611338202,10.07023,1986.1,1985.9,5.98997509]
[1742611338405,5.03508,1986.1,1985.9,5.98997509]
[1742611342952,5.03508,1986.1,1985.9,32.61197509]
[1742611343159,5.03524,1986.0,1985.9,32.61197509]
[1742611344956,5.03524,1986.0,1985.9,26.622]
[1742611347761,5.0355,1985.9,1985.8,4.668]
[1742611349568,5.03575,1985.8,1985.7,32.61297509]
[1742611349763,10.07118,1985.9,1985.7,32.61297509]
[1742611349970,5.0355,1985.9,1985.7,32.61297509]
[1742611350944,5.03575,1985.8,1985.7,32.61297509]
[1742611351355,10.85194,1985.9,1985.7,32.61297509]
[1742611351562,5.0355,1985.9,1985.7,32.61297509]
[1742611354587,5.03575,1985.8,1985.7,32.61297509]
[1742611354742,5.0355,1985.9,1985.7,32.61297509]
[1742611356082,10.07122,1985.9,1985.7,32.61297509]
[1742611356244,5.0355,1985.9,1985.7,32.61297509]
[1742611356777,5.03575,1985.8,1985.7,32.61297509]
[1742611356956,10.07119,1985.9,1985.7,32.61297509]
[1742611357790,5.03575,1985.8,1985.7,32.61297509]
[1742611360244,10.07118,1985.9,1985.7,32.61297509]
[1742611361384,5.0355,1985.9,1985.7,32.61297509]
[1742611365583,5.03575,1985.8,1985.7,26.623]
[1742611366866,5.03575,1985.8,1985.5,4.669]
[1742611366867,5.03601,1985.7,1985.5,4.669]
[1742611367073,5.03575,1985.8,1985.5,31.294]
[1742611367289,5.03602,1985.7,1985.5,31.294]
[1742611368598,5.03602,1985.7,1985.5,26.625]
[1742611368805,5.03626,1985.6,1985.5,26.625]
[1742611369207,9.18423478,1985.6,1985.5,26.625]
[1742611370209,5.03602,1985.7,1985.5,26.625]
[1742611370415,10.07179,1985.8,1985.5,27.2798]
[1742611371274,5.036,1985.7,1985.5,27.2798]
[1742611372603,5.036,1985.7,1985.5,26.625]
[1742611374295,5.036,1985.7,1985.5,32.61497509]
[1742611376013,5.84816,1985.6,1985.5,32.61497509]
[1742611376214,6.04318,1985.7,1985.5,32.61497509]
[1742611376506,5.036,1985.7,1985.5,32.61497509]
[1742611377933,10.07218,1985.7,1985.5,32.61497509]
[1742611378135,5.036,1985.7,1985.5,32.61497509]
[1742611379137,10.07219,1985.7,1985.5,32.61497509]
[1742611379337,5.036,1985.7,1985.5,32.61497509]
[1742611379948,5.03626,1985.6,1985.5,32.61497509]
[1742611380453,5.036,1985.7,1985.5,32.61497509]
[1742611381101,5.03578,1985.8,1985.5,32.61497509]
[1742611381348,6.120698,1985.9,1985.5,38.30616509]
[1742611381527,5.03579,1985.8,1985.5,40.62311187]
[1742611382599,5.03579,1985.8,1985.5,35.58672187]
[1742611383039,5.03579,1985.8,1985.5,40.62323187]
[1742611383650,5.03551,1985.9,1985.6,5.03614]
[1742611383807,10.88258,1986.0,1985.6,7.35303678]
[1742611384002,5.03561,1985.9,1985.6,7.35303678]
[1742611390372,5.03529,1986.0,1985.7,2.31694678]
[1742611390643,10.07025,1986.1,1985.8,7.35262678]
[1742611391211,10.07025,1986.1,1985.8,2.31694678]
[1742611391662,10.07025,1986.1,1985.7,7.35271678]
[1742611392157,5.03526,1986.0,1985.7,7.35271678]
[1742611392541,10.07065,1986.0,1985.7,2.31694678]
[1742611392747,10.07138,1985.9,1985.5,50.32854187]
[1742611392951,5.03567,1985.9,1985.5,40.62311187]
[1742611393263,5.03577,1985.8,1985.5,45.29211187]
[1742611393624,5.03577,1985.8,1985.5,37.28397509]
[1742611393826,5.03613,1985.7,1985.5,37.28397509]
[1742611394329,5.03613,1985.7,1985.5,32.61497509]
[1742611394729,10.0723,1985.7,1985.5,32.61497509]
[1742611395157,5.03626,1985.6,1985.5,32.61497509]
[1742611396066,5.03613,1985.7,1985.5,32.61497509]
[1742611399047,10.83162,1985.8,1985.5,32.61497509]
[1742611399258,5.79577,1985.8,1985.5,32.61497509]
[1742611399462,5.79553,1985.9,1985.6,5.03611]
[1742611399971,5.03553,1985.9,1985.6,5.03611]
[1742611401477,5.03553,1985.9,1985.6,7.35305678]
[1742611401774,5.03553,1985.9,1985.6,12.38917678]
[1742611401979,5.03553,1985.9,1985.6,12.38919678]